fUST/lending_fUST_20250530
["ID","MTS","AMOUNT","RATE_DAILY","PERIOD"]
[362957027,1748535034792,-2443.44,0.00023561,2]
[362957028,1748535034801,-200.62794978,0.00023824,7]
[362957029,1748535034811,-2443.44,0.00023835,2]
[362957030,1748535034821,-170.06088802,0.00023889,2]
[362957031,1748535034830,-221.91480261,0.000239,2]
[362957032,1748535034840,-200.0,0.0002392,120]
[362957033,1748535034851,-705.0,0.00023965,2]
[362957034,1748535034861,-2228.0,0.00023965,2]
[362957035,1748535034871,-405.0,0.00023965,2]
[362957036,1748535034881,-24253.51899,0.00023999,2]
[362957037,1748535034890,-10062.43339749,0.00024,14]
[362957038,1748535034900,-7494.0,0.00024,7]
[362957039,1748535034909,-151.0,0.00024,9]
[362957040,1748535034920,-484.4744464,0.00024055,2]
[362957041,1748535034930,-364.176416,0.00024055,2]
[362957042,1748535034939,-364.176416,0.00024055,2]
[362957043,1748535034949,-2443.44,0.00024109,2]
[362957044,1748535034958,-184.5175,0.00024109,2]
[362957045,1748535034968,-153.0,0.00024178,2]
[362957046,1748535034978,-154.6727887,0.00024192,2]
[362957047,1748535034987,-417.6515357,0.00024192,2]
[362957048,1748535034997,-267.4473596,0.00024192,2]
[362957049,1748535035007,-158.3971896,0.00024192,2]
[362957050,1748535035016,-176.3696131,0.00024192,2]
[362957051,1748535035026,-572.078714,0.00024192,2]
[362957052,1748535035036,-176.3696131,0.00024192,2]
[362957053,1748535035045,-158.3971896,0.00024192,2]
[362957054,1748535035055,-572.078714,0.00024192,2]
[362957055,1748535035065,-153.0,0.00024274,2]
[362957056,1748535035074,-175.5990737,0.00024274,2]
[362957057,1748535035083,-153.0,0.00024274,2]
[362957058,1748535035093,-158.2136244,0.00024274,2]
[362957059,1748535035103,-571.4353355,0.00024274,2]
[362957060,1748535035112,-200.0,0.00024282,120]
[362957061,1748535035122,-151.0,0.000243,6]
[362957062,1748535035131,-200.0,0.0002437,120]
[362957063,1748535035141,-2443.44,0.00024383,2]
[362957064,1748535035151,-478.283996,0.000245,3]
[362957065,1748535035161,-624.52179194,0.00024523,2]
[362957066,1748535035170,-151.0,0.000246,6]
[362957067,1748535035180,-641.2173,0.00024628,15]
[362957068,1748535035190,-2443.44,0.00024657,2]
[362957069,1748535035199,-369.035,0.00024657,3]
[362957070,1748535035209,-200.0,0.00024658,15]
[362957071,1748535035219,-200.06144708,0.00024658,2]
[362957072,1748535035228,-494.59088157,0.00024658,2]
[362957073,1748535035237,-475.25,0.000248,2]
[362957074,1748535035247,-893.83,0.000248,7]
[362957075,1748535035256,-4165.6360453,0.000248,7]
[362957107,1748535038883,-500.0,0.00021999,2]
[362957108,1748535038893,-587.79833856,0.00021999,2]
[362957109,1748535038903,-587.79833856,0.00021999,2]
[362957110,1748535038913,-587.79833856,0.00021999,2]
[362957111,1748535038922,-500.0,0.00021999,2]
[362957112,1748535038932,-587.79833856,0.00021999,2]
[362957113,1748535038942,-500.0,0.00021999,2]
[362957114,1748535038951,-548.80665611,0.00021999,2]
[362957115,1748535038963,-38.99168245,0.00021999,2]
[362957116,1748535038972,-500.0,0.00021999,2]
[362957117,1748535038982,-308.13446887,0.00021999,2]
[362957118,1748535038991,-500.0,0.00021999,2]
[362957119,1748535039000,-159.79850207,0.00021999,2]
[362957120,1748535039009,-587.79833856,0.00021999,2]
[362957121,1748535039019,-45.27700805,0.00021999,2]
[362957122,1748535039310,-542.52133051,0.00021999,2]
[362957123,1748535039320,-587.79833856,0.00021999,2]
[362957124,1748535039330,-864.94250002,0.00022831,8]
[362957125,1748535039340,-864.94250002,0.00022969,8]
[362957126,1748535039351,-864.94250002,0.00023107,8]
[362957127,1748535039361,-864.94250002,0.00023245,8]
[362957128,1748535039370,-864.94250002,0.00023383,9]
[362957129,1748535039379,-864.94250002,0.00023521,9]
[362957130,1748535039390,-864.94250002,0.00023659,9]
[362957131,1748535039399,-15.06189979,0.00023797,9]
[362957132,1748535039411,-849.88060023,0.00023797,9]
[362957133,1748535039421,-864.94250002,0.00023934,10]
[362957134,1748535039430,-864.94250002,0.00024072,10]
[362957135,1748535039440,-864.94250002,0.0002421,10]
[362957136,1748535039450,-864.94250002,0.00024348,11]
[362957137,1748535039459,-864.94250002,0.00024486,11]
[362957138,1748535039469,-864.94250002,0.00024624,11]
[362957139,1748535039479,-587.7,0.00024628,15]
[362957140,1748535039488,-864.94250002,0.00024762,11]
[362957141,1748535039497,-34922.6039547,0.000248,7]
[362957142,1748535039506,-11581.1624301,0.000248,2]
[362957143,1748535039516,-573.43,0.00024809,2]
[362957144,1748535039526,-624.52179194,0.00024822,2]
[362957145,1748535039535,-215.0738,0.00024823,2]
[362957146,1748535039545,-170.06088802,0.00024883,2]
[362957147,1748535039554,-5790.58121504,0.0002489,2]
[362957148,1748535039564,-1500.0,0.000249,2]
[362957149,1748535039573,-1500.0,0.000249,2]
[362957150,1748535039583,-1500.0,0.000249,2]
[362957151,1748535039592,-1500.0,0.000249,2]
[362957152,1748535039605,-1500.0,0.000249,2]
[362957153,1748535039615,-1500.0,0.000249,2]
[362957154,1748535039624,-1500.0,0.000249,2]
[362957155,1748535039634,-1500.0,0.000249,2]
[362957156,1748535039644,-1800.12,0.000249,2]
[362957157,1748535039654,-1500.0,0.000249,2]
[362957158,1748535039663,-1500.0,0.000249,2]
[362957159,1748535039673,-152.49,0.000249,31]
[362957160,1748535039686,-152.49,0.000249,31]
[362957161,1748535039696,-152.49,0.000249,31]
[362957162,1748535039707,-152.49,0.000249,31]
[362957163,1748535039716,-152.49,0.000249,31]
[362957164,1748535039727,-152.49,0.000249,31]
[362957165,1748535039736,-152.49,0.000249,31]
[362957166,1748535039745,-152.49,0.000249,31]
[362957167,1748535039755,-152.49,0.000249,31]
[362957168,1748535039766,-152.49,0.000249,31]
[362957169,1748535039777,-152.49,0.000249,31]
[362957170,1748535039787,-152.49,0.000249,31]
[362957171,1748535039796,-152.49,0.000249,31]
[362957172,1748535039806,-152.49,0.000249,31]
[362957173,1748535039816,-152.49,0.000249,31]
[362957174,1748535039826,-82718.30963103,0.000249,2]
[362957228,1748535042385,-84258.44300811,0.000249,2]
[362957229,1748535042397,-387991.86613147,0.000249,2]
[362957230,1748535042412,-565.709,0.00024628,15]
[362957231,1748535042421,-936.99585532,0.000249,2]
[362957232,1748535042432,-544.66843119,0.000249,2]
[362957233,1748535042444,-868.15192493,0.000249,2]
[362957234,1748535042456,-3952.92828552,0.000249,2]
[362957235,1748535042467,-11367.56356295,0.000249,2]
[362957299,1748535046816,-364.176416,0.00024055,2]
[362957302,1748535046826,-105.8235839,0.00024628,15]
[362957315,1748535046904,-460.1964161,0.00024628,15]
[362957317,1748535046914,-7624.64321089,0.000249,2]
[362957320,1748535046936,-47.63420479,0.000249,2]
[362957506,1748535048805,-35934.99873422,0.000249,2]
[362957507,1748535048820,-24967.52385682,0.000249,2]
[362957515,1748535049070,-19.30847564,0.000249,2]
[362957517,1748535049082,-10269.98696012,0.000249,2]
[362957519,1748535049092,-864.94250002,0.000249,12]
[362957521,1748535049102,-200.0,0.00024907,120]
[362957523,1748535049112,-1517.49269999,0.00024931,2]
[362958159,1748535283286,53.61995817,0.00016,2]
[362958160,1748535283308,360.75004183,0.00016,2]
[362958161,1748535757154,155.82367301,6.3e-07,2]
[362958162,1748535757282,155.82367301,6.3e-07,2]
[362958163,1748535757386,155.82367301,6.3e-07,2]
[362958164,1748535757512,155.82367301,6.3e-07,2]
[362958165,1748535757695,155.82367301,6.3e-07,2]
[362958166,1748535757866,155.82367301,6.3e-07,2]
[362958167,1748535758044,155.82367301,6.3e-07,2]
[362958168,1748535758188,155.82367301,6.3e-07,2]
[362958169,1748535758315,155.82367301,6.3e-07,2]
[362958170,1748535758415,155.82367301,6.3e-07,2]
[362958173,1748536035132,-182.80819883,0.00018087,2]
[362958174,1748536042146,-1038.72763359,0.00018087,2]
[362958175,1748536044800,293.740041,0.00013699,2]
[362958176,1748536046126,-539.06086979,0.00018087,2]
[362958181,1748536149121,-5000.0,0.0001782,2]
[362958182,1748536149147,-1483.07629558,0.00018,2]
[362958183,1748536149168,-609.07129601,0.00018,2]
[362958184,1748536149190,-430.99087827,0.00018,2]
[362958185,1748536150260,-451.36683151,0.00018,2]
[362958186,1748536163099,-150.89807695,0.0001782,2]
[362958187,1748536166139,-4849.10192305,0.0001782,2]
[362958188,1748536166163,-3890.15807478,0.00018,2]
[362958189,1748536166186,-477.0,0.00018269,2]
[362958190,1748536166208,-3209.0,0.0001827,2]
[362958191,1748536166231,-6592.78715001,0.00018461,2]
[362958192,1748536174079,-3.64683289,0.00018461,2]
[362958193,1748536174102,-188.18929524,0.000189,2]
[362958194,1748536174123,-160.0,0.00018968,2]
[362958195,1748536174147,-164.76057273,0.00019077,2]
[362958196,1748536174170,-848.8,0.00019168,3]
[362958197,1748536174197,-77.54211573,0.00019177,2]
[362958228,1748536232042,-5000.0,0.00018985,2]
[362958229,1748536232052,-422.45788427,0.00019177,2]
[362958230,1748536232062,-396.60725256,0.00019177,2]
[362958231,1748536232073,-500.0,0.00019177,2]
[362958232,1748536232085,-598.69483496,0.00019177,2]
[362958233,1748536232096,-517.89695794,0.00019177,2]
[362958234,1748536232105,-517.89695794,0.00019177,2]
[362958236,1748536232115,-517.89695794,0.00019177,2]
[362958238,1748536232126,-415.69412821,0.00019177,2]
[362958240,1748536232135,-517.89695794,0.00019177,2]
[362958242,1748536232145,-517.89695794,0.00019177,2]
[362958244,1748536232156,-517.89695794,0.00019177,2]
[362958246,1748536232166,-500.0,0.00019177,2]
[362958248,1748536232175,-517.89695794,0.00019177,2]
[362958250,1748536232185,-517.89695794,0.00019177,2]
[362958251,1748536232194,-517.89695794,0.00019177,2]
[362958253,1748536232205,-517.89695794,0.00019177,2]
[362958255,1748536232213,-517.89695794,0.00019177,2]
[362958257,1748536232223,-517.89695794,0.00019177,2]
[362958259,1748536232231,-517.89695794,0.00019177,2]
[362958261,1748536232240,-517.89695794,0.00019177,2]
[362958262,1748536232249,-517.89695794,0.00019177,2]
[362958264,1748536232258,-517.89695794,0.00019177,2]
[362958266,1748536232267,-517.89695794,0.00019177,2]
[362958268,1748536232277,-517.89695794,0.00019177,2]
[362958270,1748536232286,-517.89695794,0.00019177,2]
[362958272,1748536232296,-517.89695794,0.00019177,2]
[362958274,1748536232305,-947.43965067,0.00019177,2]
[362958276,1748536232315,-947.43965067,0.00019177,2]
[362958278,1748536232323,-947.43965067,0.00019177,2]
[362958280,1748536232333,-947.43965067,0.00019177,2]
[362958282,1748536232342,-947.43965067,0.00019177,2]
[362958284,1748536232351,-947.43965067,0.00019177,2]
[362958285,1748536232361,-565.44075881,0.00019178,2]
[362958287,1748536232371,-430.0,0.00019178,2]
[362958289,1748536232382,-277.95163896,0.00019178,2]
[362958291,1748536232391,-500.0,0.00019178,2]
[362958293,1748536232400,-210.96226806,0.00019178,2]
[362958295,1748536232409,-495.1144221,0.00019178,2]
[362958297,1748536232418,-400.0,0.00019178,2]
[362958299,1748536232428,-400.0,0.00019178,2]
[362958301,1748536232437,-245.10810695,0.00019178,2]
[362958303,1748536232446,-430.0,0.00019178,2]
[362958305,1748536232455,-430.0,0.00019178,2]
[362958306,1748536232464,-400.0,0.00019178,2]
[362958307,1748536232473,-400.0,0.00019178,2]
[362958308,1748536232482,-430.0,0.00019178,2]
[362958309,1748536232491,-430.0,0.00019178,2]
[362958310,1748536232500,-400.0,0.00019178,2]
[362958311,1748536232508,-400.0,0.00019178,2]
[362958312,1748536232517,-430.0,0.00019178,2]
[362958313,1748536232527,-430.0,0.00019178,2]
[362958314,1748536232536,-430.0,0.00019178,2]
[362958315,1748536232545,-430.0,0.00019178,2]
[362958316,1748536232553,-465.98367526,0.00019178,2]
[362958317,1748536232562,-430.0,0.00019178,2]
[362958318,1748536232571,-430.0,0.00019178,2]
[362958319,1748536232582,-430.0,0.00019178,2]
[362958320,1748536232590,-430.0,0.00019178,2]
[362958321,1748536232599,-362.35609535,0.00019178,2]
[362958322,1748536232608,-400.0,0.00019178,2]
[362958323,1748536232616,-430.0,0.00019178,2]
[362958324,1748536232625,-400.0,0.00019178,2]
[362958325,1748536232634,-430.0,0.00019178,2]
[362958326,1748536232643,-430.0,0.00019178,2]
[362958327,1748536232651,-422.12629058,0.00019178,2]
[362958328,1748536232660,-430.0,0.00019178,2]
[362958329,1748536232669,-430.0,0.00019178,2]
[362958330,1748536232678,-430.0,0.00019178,2]
[362958331,1748536232687,-430.0,0.00019178,2]
[362958332,1748536232695,-430.0,0.00019178,2]
[362958333,1748536232704,-430.0,0.00019178,2]
[362958334,1748536232713,-430.0,0.00019178,2]
[362958335,1748536232722,-430.0,0.00019178,2]
[362958336,1748536232730,-430.0,0.00019178,2]
[362958337,1748536232739,-430.0,0.00019178,2]
[362958338,1748536232748,-430.0,0.00019178,2]
[362958339,1748536232756,-430.0,0.00019178,2]
[362958340,1748536232765,-430.0,0.00019178,2]
[362958342,1748536232775,-430.0,0.00019178,2]
[362958344,1748536232784,-430.0,0.00019178,2]
[362958346,1748536232793,-430.0,0.00019178,2]
[362958348,1748536232803,-430.0,0.00019178,2]
[362958350,1748536232812,-430.0,0.00019178,2]
[362958352,1748536232821,-430.0,0.00019178,2]
[362958354,1748536232833,-430.0,0.00019178,2]
[362958356,1748536232842,-430.0,0.00019178,2]
[362958358,1748536232851,-430.0,0.00019178,2]
[362958360,1748536232861,-430.0,0.00019178,2]
[362958362,1748536232871,-430.0,0.00019178,2]
[362958363,1748536232881,-430.0,0.00019178,2]
[362958364,1748536232890,-407.53370881,0.00019178,2]
[362958365,1748536232900,-430.0,0.00019178,2]
[362958366,1748536232909,-430.0,0.00019178,2]
[362958367,1748536232918,-430.0,0.00019178,2]
[362958368,1748536232927,-430.0,0.00019178,2]
[362958369,1748536232937,-430.0,0.00019178,2]
[362958370,1748536232947,-430.0,0.00019178,2]
[362958371,1748536232957,-430.0,0.00019178,2]
[362958372,1748536232968,-430.0,0.00019178,2]
[362958373,1748536232977,-430.0,0.00019178,2]
[362958374,1748536232987,-430.0,0.00019178,2]
[362958375,1748536232996,-430.0,0.00019178,2]
[362958376,1748536233006,-219.52576777,0.00019178,2]
[362958377,1748536233017,-430.0,0.00019178,2]
[362958378,1748536233028,-400.0,0.00019178,2]
[362958379,1748536233038,-430.0,0.00019178,2]
[362958380,1748536233049,-430.0,0.00019178,2]
[362958381,1748536233059,-430.0,0.00019178,2]
[362958382,1748536233070,-500.0,0.00019178,2]
[362958383,1748536233086,-500.0,0.00019178,2]
[362958384,1748536233096,-650.0,0.00019178,2]
[362958385,1748536233106,-500.0,0.00019178,2]
[362958386,1748536233116,-430.0,0.00019178,2]
[362958387,1748536233127,-430.0,0.00019178,2]
[362958388,1748536233136,-430.0,0.00019178,2]
[362958389,1748536233147,-430.0,0.00019178,2]
[362958390,1748536233158,-222.0,0.00019178,2]
[362958391,1748536233170,-552.02,0.00019178,2]
[362958392,1748536233182,-430.0,0.00019178,2]
[362958393,1748536233191,-430.0,0.00019178,2]
[362958394,1748536233201,-524.552187,0.00019178,2]
[362958395,1748536233211,-430.0,0.00019178,2]
[362958396,1748536233220,-430.0,0.00019178,2]
[362958397,1748536233230,-430.0,0.00019178,2]
[362958398,1748536233240,-430.0,0.00019178,2]
[362958399,1748536233249,-505.73193461,0.00019178,2]
[362958400,1748536233259,-400.0,0.00019178,2]
[362958401,1748536233269,-430.0,0.00019178,2]
[362958402,1748536233278,-430.0,0.00019178,2]
[362958403,1748536233287,-420.0,0.00019178,2]
[362958404,1748536233298,-430.0,0.00019178,2]
[362958405,1748536233307,-400.0,0.00019178,2]
[362958406,1748536233316,-430.0,0.00019178,2]
[362958407,1748536233326,-400.0,0.00019178,2]
[362958409,1748536233335,-400.0,0.00019178,2]
[362958411,1748536233345,-200.0,0.00019178,2]
[362958413,1748536233355,-430.0,0.00019178,2]
[362958415,1748536233364,-506.08208493,0.00019178,2]
[362958417,1748536233374,-555.28,0.00019178,2]
[362958419,1748536233384,-430.0,0.00019178,2]
[362958421,1748536233394,-321.45371395,0.00019178,2]
[362958423,1748536233404,-224.73162541,0.00019178,2]
[362958424,1748536233414,-242.06017446,0.00019178,2]
[362958425,1748536233423,-430.0,0.00019178,2]
[362958426,1748536233434,-430.0,0.00019178,2]
[362958428,1748536233443,-430.0,0.00019178,2]
[362958430,1748536233452,-430.0,0.00019178,2]
[362958431,1748536233462,-430.0,0.00019178,2]
[362958433,1748536233473,-430.0,0.00019178,2]
[362958435,1748536233483,-430.0,0.00019178,2]
[362958436,1748536233492,-430.0,0.00019178,2]
[362958437,1748536233502,-430.0,0.00019178,2]
[362958438,1748536233511,-342.5754512,0.00019178,2]
[362958439,1748536233521,-430.0,0.00019178,2]
[362958440,1748536233531,-430.0,0.00019178,2]
[362958441,1748536233540,-430.0,0.00019178,2]
[362958442,1748536233695,-430.0,0.00019178,2]
[362958443,1748536233705,-430.0,0.00019178,2]
[362958444,1748536233715,-400.0,0.00019178,2]
[362958445,1748536233725,-430.0,0.00019178,2]
[362958446,1748536233735,-430.0,0.00019178,2]
[362958447,1748536233745,-430.0,0.00019178,2]
[362958449,1748536233755,-430.0,0.00019178,2]
[362958451,1748536233764,-430.0,0.00019178,2]
[362958452,1748536233773,-442.22616126,0.00019178,2]
[362958454,1748536233783,-430.0,0.00019178,2]
[362958456,1748536233792,-430.0,0.00019178,2]
[362958457,1748536233802,-430.0,0.00019178,2]
[362958458,1748536233812,-430.0,0.00019178,2]
[362958459,1748536233822,-430.0,0.00019178,2]
[362958460,1748536233833,-400.0,0.00019178,2]
[362958461,1748536233842,-400.0,0.00019178,2]
[362958462,1748536233853,-430.0,0.00019178,2]
[362958463,1748536233864,-430.0,0.00019178,2]
[362958464,1748536233873,-333.59377873,0.00019178,2]
[362958465,1748536233882,-430.0,0.00019178,2]
[362958466,1748536233891,-430.0,0.00019178,2]
[362958467,1748536233901,-351.89463732,0.00019178,2]
[362958468,1748536233911,-275.02524952,0.00019178,2]
[362958469,1748536233921,-401.94791511,0.00019178,2]
[362958470,1748536233931,-430.0,0.00019178,2]
[362958471,1748536233942,-430.0,0.00019178,2]
[362958472,1748536233952,-400.0,0.00019178,2]
[362958473,1748536233962,-528.04361022,0.00019178,2]
[362958474,1748536233972,-400.0,0.00019178,2]
[362958475,1748536233981,-430.0,0.00019178,2]
[362958476,1748536233991,-430.0,0.00019178,2]
[362958477,1748536234001,-430.0,0.00019178,2]
[362958478,1748536234010,-430.0,0.00019178,2]
[362958479,1748536234020,-500.0,0.00019178,2]
[362958480,1748536234031,-500.0,0.00019178,2]
[362958481,1748536234041,-500.0,0.00019178,2]
[362958482,1748536234051,-500.0,0.00019178,2]
[362958483,1748536234061,-500.0,0.00019178,2]
[362958484,1748536234070,-430.0,0.00019178,2]
[362958485,1748536234084,-500.0,0.00019178,2]
[362958486,1748536234093,-506.08000274,0.00019178,2]
[362958487,1748536234103,-430.0,0.00019178,2]
[362958488,1748536234113,-430.0,0.00019178,2]
[362958489,1748536234123,-500.0,0.00019178,2]
[362958490,1748536234133,-430.0,0.00019178,2]
[362958491,1748536234143,-430.0,0.00019178,2]
[362958492,1748536234153,-500.0,0.00019178,2]
[362958493,1748536234164,-430.0,0.00019178,2]
[362958494,1748536234173,-430.0,0.00019178,2]
[362958495,1748536234183,-430.0,0.00019178,2]
[362958496,1748536234193,-430.0,0.00019178,2]
[362958497,1748536234202,-430.0,0.00019178,2]
[362958498,1748536234211,-430.0,0.00019178,2]
[362958499,1748536234221,-430.0,0.00019178,2]
[362958500,1748536234231,-430.0,0.00019178,2]
[362958501,1748536234241,-170.21566736,0.00019178,2]
[362958502,1748536234251,-430.0,0.00019178,2]
[362958503,1748536234261,-430.0,0.00019178,2]
[362958504,1748536234271,-430.0,0.00019178,2]
[362958505,1748536234280,-500.0,0.00019178,2]
[362958506,1748536234290,-430.0,0.00019178,2]
[362958507,1748536234300,-430.0,0.00019178,2]
[362958508,1748536234310,-400.0,0.00019178,2]
[362958509,1748536234321,-430.0,0.00019178,2]
[362958510,1748536234331,-430.0,0.00019178,2]
[362958511,1748536234341,-430.0,0.00019178,2]
[362958512,1748536234350,-430.0,0.00019178,2]
[362958513,1748536234359,-430.0,0.00019178,2]
[362958514,1748536234369,-430.0,0.00019178,2]
[362958515,1748536234379,-430.0,0.00019178,2]
[362958516,1748536234388,-430.0,0.00019178,2]
[362958517,1748536234399,-430.0,0.00019178,2]
[362958518,1748536234408,-534.35371215,0.00019178,2]
[362958519,1748536234418,-430.0,0.00019178,2]
[362958520,1748536234428,-430.0,0.00019178,2]
[362958521,1748536234438,-235.68202355,0.00019178,2]
[362958522,1748536234447,-505.52,0.00019178,2]
[362958523,1748536234456,-430.0,0.00019178,2]
[362958524,1748536234465,-430.0,0.00019178,2]
[362958525,1748536234475,-430.0,0.00019178,2]
[362958526,1748536234484,-430.0,0.00019178,2]
[362958527,1748536234494,-430.0,0.00019178,2]
[362958528,1748536234504,-430.0,0.00019178,2]
[362958529,1748536234513,-400.0,0.00019178,2]
[362958530,1748536234522,-430.0,0.00019178,2]
[362958531,1748536234532,-430.0,0.00019178,2]
[362958532,1748536234541,-500.0,0.00019178,2]
[362958533,1748536234551,-430.0,0.00019178,2]
[362958534,1748536234560,-310.0,0.00019178,2]
[362958535,1748536234570,-430.0,0.00019178,2]
[362958536,1748536234580,-430.0,0.00019178,2]
[362958537,1748536234590,-430.0,0.00019178,2]
[362958538,1748536234600,-168.29192913,0.00019178,2]
[362958539,1748536234609,-430.0,0.00019178,2]
[362958540,1748536234619,-430.0,0.00019178,2]
[362958541,1748536234628,-430.0,0.00019178,2]
[362958542,1748536234637,-430.0,0.00019178,2]
[362958543,1748536234647,-430.0,0.00019178,2]
[362958544,1748536234657,-480.84,0.00019178,2]
[362958545,1748536234666,-430.0,0.00019178,2]
[362958546,1748536234676,-430.0,0.00019178,2]
[362958547,1748536234685,-430.0,0.00019178,2]
[362958548,1748536234694,-307.91795095,0.00019178,2]
[362958549,1748536234703,-175.3832225,0.00019178,2]
[362958550,1748536234712,-430.0,0.00019178,2]
[362958551,1748536234722,-430.0,0.00019178,2]
[362958552,1748536234731,-430.0,0.00019178,2]
[362958553,1748536234740,-430.0,0.00019178,2]
[362958554,1748536234750,-430.0,0.00019178,2]
[362958555,1748536234760,-430.0,0.00019178,2]
[362958556,1748536234770,-258.51517768,0.00019178,2]
[362958557,1748536234780,-430.0,0.00019178,2]
[362958558,1748536234789,-430.0,0.00019178,2]
[362958559,1748536234799,-430.0,0.00019178,2]
[362958560,1748536234809,-430.0,0.00019178,2]
[362958561,1748536234818,-430.0,0.00019178,2]
[362958562,1748536234827,-430.0,0.00019178,2]
[362958563,1748536234836,-430.0,0.00019178,2]
[362958564,1748536234845,-430.0,0.00019178,2]
[362958565,1748536234854,-430.0,0.00019178,2]
[362958566,1748536234863,-430.0,0.00019178,2]
[362958567,1748536234872,-500.26,0.00019178,2]
[362958568,1748536234881,-430.0,0.00019178,2]
[362958569,1748536234891,-430.0,0.00019178,2]
[362958570,1748536234899,-430.0,0.00019178,2]
[362958571,1748536234909,-430.0,0.00019178,2]
[362958572,1748536234918,-252.98540738,0.00019178,2]
[362958573,1748536234928,-500.0,0.00019178,2]
[362958574,1748536234937,-430.0,0.00019178,2]
[362958575,1748536234947,-546.93,0.00019178,2]
[362958576,1748536234956,-400.0,0.00019178,2]
[362958577,1748536234966,-430.0,0.00019178,2]
[362958578,1748536234975,-567.44,0.00019178,2]
[362958579,1748536234984,-430.0,0.00019178,2]
[362958580,1748536234994,-430.0,0.00019178,2]
[362958581,1748536235004,-430.0,0.00019178,2]
[362958582,1748536235013,-430.0,0.00019178,2]
[362958583,1748536235023,-430.0,0.00019178,2]
[362958584,1748536235032,-485.34,0.00019178,2]
[362958585,1748536235041,-430.0,0.00019178,2]
[362958586,1748536235051,-430.0,0.00019178,2]
[362958587,1748536235061,-445.82,0.00019178,2]
[362958588,1748536235070,-500.0,0.00019178,2]
[362958589,1748536235082,-430.0,0.00019178,2]
[362958590,1748536235093,-430.0,0.00019178,2]
[362958591,1748536235102,-430.0,0.00019178,2]
[362958592,1748536235112,-400.0,0.00019178,2]
[362958593,1748536235122,-430.0,0.00019178,2]
[362958594,1748536235132,-430.0,0.00019178,2]
[362958595,1748536235141,-430.0,0.00019178,2]
[362958596,1748536235150,-430.0,0.00019178,2]
[362958597,1748536235160,-500.0,0.00019178,2]
[362958598,1748536235169,-430.0,0.00019178,2]
[362958599,1748536235179,-430.0,0.00019178,2]
[362958600,1748536235188,-430.0,0.00019178,2]
[362958601,1748536235199,-435.23807297,0.00019178,2]
[362958602,1748536235208,-430.0,0.00019178,2]
[362958603,1748536235218,-500.0,0.00019178,2]
[362958604,1748536235228,-430.0,0.00019178,2]
[362958605,1748536235239,-430.0,0.00019178,2]
[362958606,1748536235250,-430.0,0.00019178,2]
[362958607,1748536235259,-430.0,0.00019178,2]
[362958608,1748536235269,-430.0,0.00019178,2]
[362958609,1748536235279,-430.0,0.00019178,2]
[362958610,1748536235288,-430.0,0.00019178,2]
[362958611,1748536235297,-430.0,0.00019178,2]
[362958612,1748536235307,-430.0,0.00019178,2]
[362958613,1748536235316,-500.0,0.00019178,2]
[362958614,1748536235326,-502.3818918,0.00019178,2]
[362958615,1748536235336,-430.0,0.00019178,2]
[362958616,1748536235345,-430.0,0.00019178,2]
[362958617,1748536235355,-430.0,0.00019178,2]
[362958618,1748536235365,-430.0,0.00019178,2]